bitfinex/quotes_SOLUSD_20250929
["timestamp","ask_amount","ask_price","bid_price","bid_amount"]
[1759113516748,188.11699531,210.39,210.38,0.1]
[1759113516945,188.82699531,210.39,210.38,0.1]
[1759113517455,56.02699531,210.39,210.38,0.1]
[1759113518661,60.78007292,210.39,210.38,0.1]
[1759113520056,13.59559401,210.38,210.36,0.2]
[1759113520256,13.59559401,210.38,210.32,0.1]
[1759113520257,26.0,210.33,210.32,0.1]
[1759113520467,64.5178653,210.33,210.32,0.1]
[1759113520650,83.57789281,210.33,210.32,0.1]
[1759113520850,82.86789281,210.33,210.32,0.1]
[1759113521157,83.57789281,210.33,210.32,0.1]
[1759113523266,83.57789281,210.33,210.29,0.1]
[1759113523267,39.59559401,210.3,210.29,0.1]
[1759113523446,78.11345931,210.3,210.29,0.1]
[1759113523642,78.82345931,210.3,210.29,0.1]
[1759113523844,41.11345931,210.3,210.29,0.1]
[1759113524064,80.04135561,210.3,210.29,0.1]
[1759113524259,43.02135561,210.3,210.29,0.1]
[1759113524562,80.04135561,210.3,210.29,0.1]
[1759113525550,44.35070575,210.3,210.29,0.76]
[1759113525958,81.37070575,210.3,210.29,0.76]
[1759113527657,26.0,210.31,210.29,0.76]
[1759113527857,37.02,210.3,210.29,0.76]
[1759113531058,37.02,210.3,210.29,0.1]
[1759113531665,63.02,210.3,210.29,0.1]
[1759113532971,67.77511174,210.3,210.29,0.1]
[1759113533170,82.07070575,210.3,210.29,0.1]
[1759113533376,81.37070575,210.3,210.29,0.1]
[1759113534076,30.75511174,210.3,210.29,0.1]
[1759113534375,63.02,210.3,210.29,0.75]
[1759113537254,67.77511174,210.3,210.29,0.75]
[1759113537455,67.77511174,210.3,210.29,0.1]
[1759113537978,63.02,210.3,210.29,0.1]
[1759113540963,63.02,210.3,210.29,0.75]
[1759113541282,67.77511174,210.3,210.29,0.1]
[1759113541491,68.47511174,210.3,210.29,0.1]
[1759113541783,82.07070575,210.3,210.29,0.1]
[1759113544063,83.58857105,210.3,210.29,0.1]
[1759113547976,85.49655836,210.3,210.29,0.1]
[1759113548174,48.47655836,210.3,210.29,0.1]
[1759113548380,13.59559401,210.34,210.29,0.75]
[1759113548563,37.02,210.33,210.29,0.75]
[1759113548767,15.11345931,210.34,210.29,0.75]
[1759113548977,26.0,210.3,210.29,0.75]
[1759113549182,37.02,210.31,210.29,0.1]
[1759113549692,37.02,210.31,210.3,0.65]
[1759113550278,26.0,210.31,210.3,0.65]
[1759113550798,37.02,210.31,210.29,0.1]
[1759113550973,37.02,210.31,210.29,0.75]
[1759113551396,37.02,210.31,210.3,0.65]
[1759113551566,6.27268346,210.32,210.3,0.65]
[1759113551766,37.02,210.31,210.3,0.65]
[1759113552589,6.27268346,210.32,210.3,0.65]
[1759113552800,37.02,210.31,210.3,0.65]
[1759113553272,63.02,210.31,210.29,0.1]
[1759113553464,63.02,210.31,210.29,0.81]
[1759113553669,37.02,210.31,210.29,0.81]
[1759113553870,37.02,210.31,210.3,0.71]
[1759113554291,26.0,210.3,210.29,0.1]
[1759113554591,37.02,210.31,210.29,0.81]
[1759113555384,63.02,210.3,210.29,0.1]
[1759113555592,26.0,210.3,210.29,0.1]
[1759113555799,63.02,210.3,210.29,0.1]
[1759113555991,32.27297704,210.3,210.29,0.1]
[1759113556172,69.29297704,210.3,210.29,0.1]
[1759113556574,26.0,210.3,210.29,0.1]
[1759113556794,26.0,210.31,210.29,0.81]
[1759113556974,26.0,210.32,210.29,0.81]
[1759113557297,26.0,210.32,210.29,5.5653295]
[1759113557476,26.0,210.32,210.3,0.71]
[1759113558393,26.0,210.32,210.31,0.71]
[1759113560093,26.0,210.32,210.29,0.1]
[1759113560094,26.0,210.3,210.29,0.1]
[1759113560776,26.0,210.3,210.29,0.78]
[1759113561523,26.0,210.3,210.29,5.53533786]
[1759113561795,5.46443727,210.33,210.29,0.78]
[1759113562097,26.0,210.3,210.29,0.78]
[1759113563096,26.0,210.3,210.29,0.1]
[1759113565900,26.0,210.3,210.23,16.64843266]
[1759113567988,26.0,210.3,210.25,16.64684898]
[1759113568297,26.0,210.3,210.26,0.68]
[1759113568501,26.0,210.3,210.27,0.68]
[1759113569283,6.98136681,210.38,210.27,0.68]
[1759113569490,1.5178653,210.36,210.27,0.68]
[1759113569697,0.71,210.35,210.27,0.68]
[1759113569899,37.71,210.35,210.27,0.68]
[1759113570098,37.71,210.35,210.28,4.755564]
[1759113570293,37.71,210.35,210.28,5.435564]
[1759113570698,37.71,210.35,210.28,17.32447402]
[1759113571211,37.71,210.35,210.29,0.68]
[1759113571392,26.0,210.32,210.26,4.75589402]
[1759113571598,27.5178653,210.32,210.26,4.75589402]
[1759113571800,26.0,210.3,210.26,4.75589402]
[1759113571997,26.0,210.3,210.26,5.43589402]
[1759113572399,26.71,210.3,210.26,4.75589402]
[1759113573084,0.71,210.29,210.26,4.75589402]
[1759113573284,26.0,210.3,210.26,4.75589402]
[1759113573485,26.71,210.3,210.26,5.43589402]
[1759113573693,26.71,210.3,210.26,4.75589402]
[1759113574112,26.71,210.3,210.25,11.89016372]
[1759113574288,26.71,210.3,210.26,0.68]
[1759113575306,26.71,210.3,210.25,16.64640628]
[1759113575515,26.71,210.3,210.25,17.32640628]
[1759113576413,26.71,210.3,210.26,0.68]
[1759113577210,26.0,210.3,210.25,11.89016372]
[1759113577416,0.71,210.29,210.25,0.68]
[1759113578414,26.0,210.3,210.23,16.64843266]
[1759113578596,26.0,210.3,210.26,0.68]
[1759113578794,26.71,210.3,210.26,0.68]
[1759113579004,26.71,210.3,210.26,5.43585233]
[1759113582308,26.0,210.31,210.26,4.75585233]
[1759113582513,26.71,210.3,210.26,4.75585233]
[1759113582823,0.71,210.3,210.26,4.75585233]
[1759113583014,0.71,210.29,210.26,4.75585233]
[1759113584917,26.0,210.3,210.26,4.75585233]
[1759113585416,41.75446342,210.33,210.27,0.68]
[1759113585417,63.0,210.33,210.27,0.68]
[1759113585623,26.0,210.33,210.27,0.68]
[1759113586724,26.71,210.33,210.28,4.755564]
[1759113586907,0.71,210.32,210.28,5.435564]
[1759113587518,26.0,210.33,210.28,5.435564]
[1759113587716,26.71,210.33,210.28,5.435564]
[1759113587912,0.71,210.32,210.28,5.435564]
[1759113588923,26.0,210.33,210.28,4.755564]
[1759113589113,0.71,210.31,210.28,4.755564]
[1759113589302,0.71,210.3,210.28,4.755564]
[1759113589710,3.08326638,210.32,210.28,4.755564]
[1759113589908,0.71,210.31,210.28,4.755564]
[1759113590307,0.71,210.31,210.27,4.75579017]
[1759113590629,29.08326638,210.33,210.28,0.68]
[1759113590825,0.68,210.32,210.27,4.75579017]
[1759113591122,3.05326638,210.31,210.26,4.75598923]
[1759113591329,0.68,210.3,210.26,4.75598923]
[1759113591549,0.68,210.29,210.26,4.75598923]
[1759113592102,0.68,210.29,210.25,4.75624256]
[1759113592308,0.68,210.29,210.25,5.47624256]
[1759113592812,2.37326638,210.31,210.25,5.47624256]
[1759113593007,3.05326638,210.31,210.25,17.36684898]
[1759113593410,0.68,210.3,210.25,17.36684898]
[1759113593712,0.68,210.29,210.25,4.75624256]
[1759113594020,0.68,210.28,210.23,5.47664576]
[1759113594223,0.68,210.28,210.24,0.72]
[1759113594418,7.12815267,210.31,210.24,0.72]
[1759113594624,0.68,210.3,210.24,0.72]
[1759113595413,0.68,210.3,210.25,4.75624256]
[1759113595606,0.68,210.29,210.25,4.75624256]
[1759113598430,0.68,210.29,210.23,16.64843266]
[1759113598627,0.68,210.29,210.25,0.72]
[1759113599524,0.68,210.29,210.25,5.47610158]
[1759113600309,0.68,210.28,210.25,4.75610158]
[1759113600521,0.68,210.3,210.25,4.75610158]
[1759113600725,0.68,210.29,210.25,0.72]
[1759113602432,2.37326638,210.31,210.26,4.75601636]
[1759113602614,0.68,210.3,210.26,5.47601636]
[1759113603945,0.68,210.29,210.25,11.89053868]
[1759113604238,0.68,210.29,210.25,12.61053868]
[1759113604533,0.68,210.29,210.25,11.89053868]
[1759113604841,0.68,210.29,210.25,12.61053868]
[1759113606040,0.68,210.29,210.25,17.36678124]
[1759113606842,26.0,210.3,210.26,0.72]
[1759113607153,26.0,210.3,210.22,0.1]
[1759113607154,2.37326638,210.27,210.22,0.1]
[1759113607439,2.37326638,210.23,210.22,0.1]
[1759113607946,0.68,210.23,210.22,0.1]
[1759113608255,65.35326638,210.25,210.22,0.1]
[1759113608427,28.37326638,210.25,210.22,0.1]
[1759113608747,26.0,210.24,210.22,4.85687194]
[1759113608934,26.0,210.24,210.23,0.72]
[1759113609321,26.0,210.24,210.22,4.85687194]
[1759113609517,26.0,210.24,210.22,5.57687194]
[1759113610032,26.0,210.27,210.23,0.72]
[1759113610360,36.98,210.31,210.24,0.72]
[1759113610550,0.68,210.31,210.24,0.72]
[1759113610756,2.37326638,210.33,210.24,0.72]
[1759113610958,3.05326638,210.36,210.25,13.59559401]
[1759113611152,26.0,210.34,210.26,0.72]
[1759113611562,0.68,210.34,210.26,0.72]
[1759113611943,26.0,210.33,210.27,4.75579017]
[1759113612267,26.65,210.32,210.27,4.75579017]
[1759113612452,26.65,210.32,210.27,5.43579017]
[1759113612639,26.65,210.32,210.27,17.3252656]
[1759113612835,7.12751925,210.34,210.27,4.75579017]
[1759113613059,0.65,210.31,210.27,4.75579017]
[1759113614167,3.20787713,210.33,210.26,16.64605726]
[1759113614357,26.0,210.34,210.28,0.68]
[1759113616264,3.20731738,210.39,210.29,30.23927653]
[1759113616473,39.35326638,210.41,210.3,0.68]
[1759113616474,26.65,210.38,210.3,0.68]
[1759113617155,26.0,210.38,210.3,0.68]
[1759113617358,0.65,210.4,210.31,13.59559401]
[1759113617560,0.65,210.4,210.32,0.68]
[1759113618071,26.0,210.42,210.33,16.64051727]
[1759113618260,26.0,210.41,210.34,0.68]
[1759113618766,0.65,210.43,210.34,0.68]
[1759113618948,26.0,210.44,210.34,0.68]
[1759113619155,0.65,210.43,210.34,0.68]
[1759113619870,26.0,210.42,210.33,17.32051727]
[1759113620072,0.65,210.41,210.33,17.32051727]
[1759113620249,0.65,210.4,210.33,17.32051727]
[1759113620452,26.0,210.42,210.34,0.68]
[1759113620778,0.65,210.43,210.34,0.68]
[1759113620981,26.65,210.43,210.34,0.68]
[1759113622669,26.0,210.42,210.35,16.63893509]
[1759113622967,0.66,210.41,210.35,16.63893509]
[1759113623563,0.66,210.4,210.35,16.63893509]
[1759113623770,0.66,210.39,210.35,16.63893509]
[1759113625061,0.66,210.39,210.35,11.88495364]
[1759113625875,0.66,210.39,210.35,12.54495364]
[1759113626255,0.66,210.39,210.35,17.29893509]
[1759113626451,2.37326638,210.41,210.35,4.75398145]
[1759113626651,2.37326638,210.41,210.33,4.75426022]
[1759113626652,2.37326638,210.37,210.33,4.75426022]
[1759113626876,0.66,210.36,210.33,4.75426022]
[1759113627365,0.66,210.35,210.33,4.75426022]
[1759113627763,0.66,210.35,210.31,4.75488564]
[1759113628363,0.66,210.35,210.31,16.64209975]
[1759113629060,0.66,210.35,210.31,17.30209975]
[1759113629379,0.66,210.35,210.31,16.64209975]
[1759113630475,0.66,210.35,210.31,11.88721411]
[1759113630877,0.66,210.34,210.31,11.88721411]
[1759113631476,0.66,210.33,210.31,11.88721411]
[1759113631776,2.37326638,210.37,210.31,11.88721411]
[1759113631777,0.66,210.35,210.31,11.88721411]
[1759113631964,0.66,210.34,210.31,11.88721411]
[1759113633482,28.37326638,210.37,210.24,0.66]
[1759113633483,3.03326638,210.33,210.24,0.66]
[1759113633663,29.03326638,210.33,210.24,0.66]
[1759113633864,26.0,210.3,210.23,4.75669504]
[1759113634066,3.03326638,210.29,210.23,4.75669504]
[1759113634365,2.17943185,210.28,210.22,4.85691482]
[1759113634576,0.66,210.27,210.22,4.85691482]
[1759113634781,0.66,210.26,210.22,4.85691482]
[1759113635271,0.66,210.25,210.22,4.85691482]
[1759113635587,26.0,210.26,210.22,4.85691482]
[1759113635789,0.66,210.24,210.22,0.1]
[1759113635995,0.66,210.23,210.22,0.1]
[1759113637269,5.41669504,210.23,210.22,0.1]
[1759113637898,19.01228905,210.23,210.22,0.1]
[1759113638088,55.97228905,210.23,210.22,0.1]
[1759113640579,51.21559401,210.23,210.22,0.1]
[1759113640899,2.17943185,210.23,210.22,0.1]
[1759113641083,28.17943185,210.23,210.22,0.1]
[1759113641497,2.17943185,210.23,210.22,0.1]
[1759113641801,39.13943185,210.23,210.22,0.1]
[1759113642376,6.93612689,210.23,210.22,0.1]
[1759113642576,43.89612689,210.23,210.22,0.1]
[1759113644137,57.4917209,210.23,210.22,0.1]
[1759113644790,46.5317209,210.23,210.22,0.1]
[1759113645109,83.4917209,210.23,210.22,0.1]
[1759113645889,41.77502586,210.23,210.22,0.1]
[1759113646090,83.4917209,210.23,210.22,0.1]
[1759113647387,41.77502586,210.23,210.22,0.1]
[1759113647805,78.75502586,210.23,210.22,0.1]
[1759113648212,83.5117209,210.23,210.22,0.1]
[1759113648396,46.5317209,210.23,210.22,0.1]
[1759113648713,83.4917209,210.23,210.22,0.1]
[1759113648916,46.5317209,210.23,210.22,0.1]
[1759113649089,83.5117209,210.23,210.22,0.1]
[1759113649290,46.5317209,210.23,210.22,0.1]
[1759113649518,69.91612689,210.23,210.22,0.1]
[1759113650100,83.5117209,210.23,210.22,0.1]
[1759113650312,78.75502586,210.23,210.22,0.1]
[1759113650626,62.98,210.23,210.22,0.1]
[1759113651100,6.99612689,210.23,210.22,0.1]
[1759113651295,38.49943185,210.23,210.22,0.1]
[1759113651923,39.21943185,210.23,210.22,0.1]
[1759113652094,38.49943185,210.23,210.22,0.1]
[1759113653394,11.88822885,210.3,210.22,0.1]
[1759113653723,27.51943185,210.24,210.22,0.1]
[1759113653898,64.49943185,210.24,210.22,0.1]
[1759113654224,0.72,210.23,210.22,0.1]
[1759113654398,37.7,210.23,210.22,0.1]
[1759113655536,5.47669504,210.23,210.22,0.1]
[1759113655740,42.45669504,210.23,210.22,0.1]
[1759113656933,27.51943185,210.24,210.22,0.1]
[1759113657112,1.51943185,210.24,210.22,0.1]
[1759113657313,0.72,210.23,210.22,0.1]
[1759113657536,37.7,210.23,210.22,0.1]
[1759113657835,36.98,210.23,210.22,0.1]
[1759113658349,37.7,210.23,210.22,0.1]
[1759113658522,42.45669504,210.23,210.22,0.1]
[1759113658920,82.05228905,210.23,210.22,0.1]
[1759113659217,45.07228905,210.23,210.22,0.1]
[1759113659420,82.05228905,210.23,210.22,0.1]
[1759113662034,45.07228905,210.23,210.22,0.1]
[1759113662235,82.05228905,210.23,210.22,0.1]
[1759113663338,45.07228905,210.23,210.22,0.1]
[1759113663532,82.05228905,210.23,210.22,0.1]
[1759113664635,81.33228905,210.23,210.22,0.1]
[1759113664816,82.05228905,210.23,210.22,0.1]
[1759113665437,81.33228905,210.23,210.22,0.1]
[1759113666141,76.57559401,210.23,210.22,0.1]
[1759113666536,39.59559401,210.23,210.22,0.1]
[1759113666934,44.35228905,210.23,210.22,0.1]
[1759113667239,27.51943185,210.23,210.22,0.1]
[1759113667539,64.47943185,210.23,210.22,0.1]
[1759113667724,27.51943185,210.23,210.22,0.1]
[1759113668035,1.51943185,210.23,210.22,0.1]
[1759113669927,26.0,210.24,210.22,0.81]
[1759113670134,26.0,210.24,210.22,5.56691707]
[1759113670347,26.0,210.24,210.23,0.71]
[1759113670943,26.0,210.24,210.23,5.46669504]
[1759113671632,1.51943185,210.29,210.23,17.35843266]
[1759113671633,38.47943185,210.29,210.23,17.35843266]
[1759113671833,1.51943185,210.29,210.24,0.71]
[1759113672552,26.0,210.3,210.24,0.71]
[1759113672840,26.0,210.3,210.25,16.64684898]
[1759113673145,1.51943185,210.34,210.26,0.68]
[1759113673524,26.0,210.31,210.26,0.68]
[1759113675041,26.0,210.31,210.27,4.75579017]
[1759113675432,26.0,210.31,210.28,0.68]
[1759113676043,64.47943185,210.34,210.28,0.68]
[1759113677147,64.47943185,210.34,210.29,4.75533786]
[1759113677446,26.0,210.33,210.29,5.43533786]
[1759113677635,26.0,210.32,210.29,5.43533786]
[1759113678344,26.0,210.33,210.3,0.68]
[1759113679254,0.7,210.35,210.3,0.68]
[1759113679554,26.0,210.36,210.31,0.68]
[1759113679854,26.0,210.34,210.32,0.68]
[1759113680037,26.0,210.34,210.33,0.68]
[1759113680346,36.96,210.39,210.34,4.75420747]
[1759113680546,26.0,210.36,210.34,4.75420747]
[1759113680749,26.0,210.36,210.24,13.59559401]
[1759113681048,26.0,210.35,210.24,13.59559401]
[1759113682044,26.0,210.35,210.27,23.77810532]
[1759113682754,26.0,210.35,210.27,38.17550408]
[1759113683248,26.0,210.35,210.27,23.77810532]
[1759113685846,26.0,210.38,210.27,24.08810532]
[1759113686047,26.0,210.38,210.28,13.59559401]
[1759113687262,26.0,210.38,210.29,16.64368252]
[1759113688461,26.0,210.35,210.29,16.64368252]
[1759113689469,26.69,210.35,210.29,11.88834466]
[1759113692256,0.69,210.35,210.29,11.88834466]
[1759113693877,0.69,210.35,210.28,4.755564]
[1759113693878,0.69,210.34,210.28,4.755564]
[1759113694060,26.69,210.33,210.24,4.75646879]
[1759113694372,26.0,210.31,210.24,11.89117199]
[1759113694575,0.69,210.3,210.23,4.75669504]
[1759113694750,0.69,210.3,210.23,16.64843266]
[1759113696056,26.0,210.29,210.23,16.64843266]
[1759113697456,0.69,210.3,210.23,16.64843266]
[1759113697856,26.0,210.31,210.23,16.95843266]
[1759113698570,0.69,210.3,210.23,16.64843266]
[1759113698752,0.69,210.29,210.23,16.64843266]
[1759113698954,0.69,210.28,210.23,16.64843266]
[1759113699154,0.69,210.27,210.23,16.64843266]
[1759113699361,0.69,210.26,210.23,16.64843266]
[1759113701359,0.69,210.25,210.22,0.1]
[1759113701667,26.69,210.25,210.22,0.1]
[1759113701868,31.44624665,210.25,210.22,0.1]
[1759113703476,0.69,210.25,210.22,0.1]
[1759113703958,26.0,210.24,210.22,0.1]
[1759113704186,26.69,210.23,210.22,0.1]
[1759113707264,0.69,210.23,210.22,0.1]
[1759113708776,3.06304389,210.23,210.22,0.1]
[1759113709985,0.69,210.23,210.22,0.1]
[1759113714089,26.0,210.24,210.22,4.85683728]
[1759113714496,26.0,210.23,210.22,4.85683728]
[1759113715994,26.71,210.23,210.22,4.85683728]
[1759113717487,0.71,210.23,210.22,4.85683728]
[1759113718399,26.0,210.24,210.22,4.85683728]
[1759113718699,0.71,210.28,210.22,4.85683728]
[1759113718884,26.0,210.26,210.22,16.74914058]
[1759113719087,0.71,210.25,210.22,16.74914058]
[1759113719278,0.71,210.24,210.22,4.85683728]
[1759113719803,26.71,210.26,210.22,4.85683728]
[1759113719993,26.0,210.26,210.22,4.85683728]
[1759113720196,0.71,210.25,210.22,4.85683728]
[1759113720895,26.0,210.26,210.22,4.85683728]
[1759113721205,0.71,210.25,210.22,4.85683728]
[1759113721398,0.71,210.24,210.22,4.85683728]
[1759113721596,0.71,210.23,210.22,0.1]
[1759113723392,5.46669504,210.23,210.22,0.1]
[1759113723594,37.65,210.23,210.22,0.1]
[1759113724286,42.40669504,210.23,210.22,0.1]
[1759113724491,37.65,210.23,210.22,0.1]
[1759113725708,13.59559401,210.29,210.22,0.1]
[1759113725709,0.71,210.27,210.22,0.1]
[1759113725912,0.71,210.26,210.22,4.85692132]
[1759113726087,0.71,210.25,210.22,4.85692132]
[1759113726500,26.0,210.24,210.22,4.85692132]
[1759113726911,0.71,210.23,210.22,4.85692132]
[1759113727100,26.0,210.24,210.22,4.85692132]
[1759113727302,26.71,210.24,210.22,4.85692132]
[1759113729006,0.71,210.23,210.22,0.1]
[1759113730192,26.71,210.24,210.22,4.85692132]
[1759113730500,0.71,210.23,210.22,4.85692132]
[1759113732713,0.71,210.23,210.22,0.1]
[1759113735802,26.67,210.25,210.22,0.1]
[1759113736005,26.0,210.23,210.22,0.1]
[1759113736810,36.94,210.26,210.22,0.1]
[1759113737117,26.0,210.23,210.22,0.1]
[1759113737614,26.0,210.23,210.22,4.85692132]
[1759113738505,0.67,210.25,210.22,4.85692132]
[1759113738720,26.0,210.24,210.22,4.85692132]
[1759113739317,26.0,210.25,210.22,4.85692132]
[1759113739501,26.67,210.24,210.22,4.85692132]
[1759113740022,26.0,210.24,210.22,4.85692132]
[1759113740217,26.0,210.25,210.22,4.85692132]
[1759113740396,26.67,210.25,210.22,4.85692132]
[1759113740822,26.0,210.25,210.22,4.85692132]
[1759113741521,26.0,210.25,210.22,17.05922462]
[1759113742920,26.0,210.25,210.22,16.74922462]
[1759113743414,0.68,210.27,210.22,16.74922462]
[1759113743622,26.0,210.26,210.22,17.05922462]
[1759113745214,26.0,210.26,210.22,16.74922462]
[1759113745402,26.0,210.26,210.22,17.05922462]
[1759113747207,0.68,210.25,210.22,16.74922462]
[1759113747618,26.0,210.26,210.22,16.74922462]
[1759113747922,3.20571542,210.28,210.23,0.31]
[1759113748125,40.12571542,210.32,210.22,16.74922462]
[1759113748322,0.68,210.3,210.24,0.31]
[1759113749208,0.68,210.3,210.25,16.64684898]
[1759113749532,0.68,210.29,210.25,16.64684898]
[1759113750519,0.68,210.32,210.26,0.31]
[1759113750714,0.68,210.34,210.26,0.31]
[1759113751114,26.68,210.34,210.26,0.31]
[1759113751310,26.68,210.34,210.27,16.6452656]
[1759113751611,26.68,210.34,210.28,0.31]
[1759113752330,26.68,210.34,210.29,16.64368252]
[1759113752523,0.68,210.33,210.29,16.64368252]
[1759113752999,26.0,210.34,210.29,16.64368252]
[1759113753205,0.68,210.32,210.29,16.64368252]
[1759113753722,0.68,210.31,210.29,4.75533786]
[1759113753923,0.68,210.3,210.29,4.75533786]
[1759113754326,0.68,210.3,210.26,11.88956373]
[1759113754510,0.68,210.29,210.26,11.88956373]
[1759113754709,2.37304389,210.31,210.26,11.88956373]
[1759113754931,0.68,210.29,210.26,11.88956373]
[1759113757415,0.68,210.28,210.26,11.88956373]
[1759113758711,0.68,210.28,210.23,16.64843266]
[1759113759112,0.68,210.28,210.23,16.95843266]
[1759113759419,0.68,210.27,210.23,16.64843266]
[1759113759622,0.68,210.26,210.23,16.64843266]
[1759113759810,0.68,210.25,210.23,16.64843266]
[1759113764343,0.68,210.27,210.23,16.64843266]
[1759113764544,0.68,210.26,210.23,16.64843266]
[1759113766446,26.0,210.28,210.23,16.64843266]
[1759113766447,26.68,210.28,210.23,16.64843266]
[1759113766648,0.68,210.27,210.23,16.64843266]
[1759113766851,0.68,210.26,210.23,16.64843266]
[1759113767243,26.0,210.28,210.23,16.64843266]
[1759113767451,0.68,210.25,210.23,16.64843266]
[1759113769449,0.68,210.26,210.23,16.64843266]
[1759113771033,0.67,210.25,210.23,16.64843266]
[1759113771234,0.67,210.27,210.23,16.64843266]
[1759113771450,0.67,210.26,210.23,16.64843266]
[1759113772857,26.0,210.28,210.23,16.64843266]
[1759113773036,0.67,210.27,210.23,16.64843266]
[1759113773237,0.67,210.26,210.23,16.64843266]
[1759113780939,26.0,210.28,210.24,0.31]
[1759113781139,26.0,210.29,210.25,0.31]
[1759113781352,26.67,210.29,210.23,16.64843266]
[1759113781550,26.67,210.29,210.23,16.95843266]
[1759113781945,0.67,210.29,210.23,16.95843266]
[1759113783657,0.67,210.28,210.23,16.64843266]
[1759113783962,1.51870251,210.24,210.22,0.1]
[1759113784260,0.67,210.23,210.22,0.1]
[1759113786171,26.67,210.23,210.22,0.1]
[1759113786970,0.67,210.23,210.22,0.1]
[1759113787351,0.67,210.23,210.22,4.85692132]
[1759113787752,1.51870251,210.25,210.22,0.1]
[1759113787954,0.67,210.23,210.22,0.1]
[1759113788475,0.67,210.23,210.22,4.85692132]
[1759113789369,0.67,210.23,210.22,0.1]
[1759113789573,26.67,210.23,210.22,0.1]
[1759113790960,31.42669504,210.23,210.22,0.1]
[1759113791454,73.06476148,210.23,210.22,0.1]
[1759113792958,52.98338529,210.23,210.22,0.1]
[1759113793160,89.86338529,210.23,210.22,0.1]
[1759113793377,52.98338529,210.23,210.22,0.1]
[1759113793587,89.86338529,210.23,210.22,0.1]
[1759113794360,52.98338529,210.23,210.22,0.1]
[1759113794558,89.86338529,210.23,210.22,0.1]
[1759113797983,52.98338529,210.23,210.22,0.1]
[1759113798569,89.86338529,210.23,210.22,0.1]
[1759113799585,52.98338529,210.23,210.22,0.1]
[1759113799777,89.86338529,210.23,210.22,0.1]
[1759113800358,89.85773004,210.23,210.22,0.1]
[1759113802087,52.97773004,210.23,210.22,0.1]
[1759113802264,89.85773004,210.23,210.22,0.1]
[1759113803184,52.97773004,210.23,210.22,0.1]
[1759113803398,52.97773004,210.23,210.14,0.1]
[1759113803399,26.0,210.15,210.14,0.1]
[1759113803584,27.51870251,210.15,210.14,0.1]
[1759113806494,27.51870251,210.15,210.14,0.41]
[1759113806676,27.51870251,210.15,210.14,0.1]
[1759113809783,1.51870251,210.19,210.14,0.41]
[1759113809972,0.67,210.21,210.14,0.1]
[1759113809973,1.51870251,210.17,210.14,0.1]
[1759113810479,26.0,210.19,210.15,0.31]
[1759113810779,26.0,210.19,210.16,4.7582794]
[1759113811104,3.91719425,210.24,210.17,0.31]
[1759113811283,26.0,210.21,210.17,0.31]
[1759113812301,0.67,210.27,210.17,0.31]
[1759113812484,2.18870251,210.27,210.17,0.31]
[1759113812684,65.06870251,210.27,210.17,0.31]
[1759113813000,1.51870251,210.25,210.18,16.65239318]
[1759113813504,27.51870251,210.25,210.19,0.31]
[1759113814287,27.51870251,210.25,210.2,4.75737392]